bitfinex/quotes_BTCUSD_20250829
["timestamp","ask_amount","ask_price","bid_price","bid_amount"]
[1756431158405,0.02037764,111870.0,111860.0,0.38392492]
[1756431158567,0.02037764,111870.0,111860.0,0.38492492]
[1756431158767,0.02037764,111870.0,111860.0,0.38392492]
[1756431159158,0.02037764,111870.0,111860.0,0.38692492]
[1756431159375,0.02037764,111870.0,111860.0,0.38892492]
[1756431159582,0.0082408,111870.0,111860.0,0.38892492]
[1756431161417,0.72928905,111880.0,111870.0,0.17877893]
[1756431161630,1.66702499,111880.0,111870.0,0.18382893]
[1756431162205,1.28946164,111880.0,111870.0,0.34026893]
[1756431162449,0.01444579,111880.0,111870.0,0.44063531]
[1756431162685,0.51444579,111880.0,111870.0,0.44163531]
[1756431162928,1.43773979,111880.0,111870.0,0.44263531]
[1756431163177,0.02640598,111880.0,111870.0,0.65256893]
[1756431163491,0.52640598,111880.0,111870.0,0.65256893]
[1756431163594,1.43773979,111880.0,111870.0,0.65256893]
[1756431163861,0.00825253,111880.0,111870.0,0.65256893]
[1756431164292,0.51445219,111880.0,111870.0,0.65256893]
[1756431164515,1.43774619,111880.0,111870.0,0.65256893]
[1756431164754,0.01445219,111880.0,111870.0,0.65256893]
[1756431164977,0.01445219,111880.0,111870.0,1.06971102]
[1756431165195,0.01163524,111890.0,111880.0,0.22236296]
[1756431165415,0.02610952,111890.0,111880.0,0.29419296]
[1756431165599,0.02610952,111890.0,111880.0,0.29617296]
[1756431166302,0.01447428,111890.0,111880.0,0.38446928]
[1756431166436,0.01447428,111890.0,111880.0,0.29617296]
[1756431166644,0.00827102,111890.0,111880.0,0.29617296]
[1756431166890,0.51447839,111890.0,111880.0,0.40893296]
[1756431167058,0.51447839,111890.0,111880.0,0.45253296]
[1756431167059,0.93777239,111890.0,111880.0,0.45253296]
[1756431167256,0.01447839,111890.0,111880.0,0.29617296]
[1756431167516,0.01447839,111890.0,111880.0,0.45353296]
[1756431167873,0.01447839,111890.0,111880.0,0.45453296]
[1756431168430,0.01447839,111890.0,111880.0,0.29817296]
[1756431168650,1.35573054,111890.0,111880.0,0.45453296]
[1756431168842,0.01448647,111890.0,111880.0,0.45453296]
[1756431169046,0.01448647,111890.0,111880.0,0.72123296]
[1756431169701,0.01448647,111890.0,111880.0,0.72119296]
[1756431169902,0.51448647,111890.0,111880.0,0.72119296]
[1756431170107,0.93778047,111890.0,111880.0,0.72119296]
[1756431170311,0.01448647,111890.0,111880.0,0.56487296]
[1756431170538,1.31534382,111890.0,111880.0,0.56487296]
[1756431170745,1.31534382,111890.0,111880.0,0.64738296]
[1756431170963,1.31534382,111890.0,111880.0,0.60378296]
[1756431171498,1.31534382,111890.0,111880.0,0.64738296]
[1756431172017,1.30913765,111890.0,111880.0,0.64738296]
[1756431172255,1.31534792,111890.0,111880.0,0.64738296]
[1756431172491,1.31534792,111890.0,111880.0,0.60378296]
[1756431172689,1.31534872,111890.0,111880.0,0.64738296]
[1756431174126,1.31534872,111890.0,111880.0,0.49106296]
[1756431174339,1.40364504,111890.0,111880.0,0.2687]
[1756431174755,1.43053104,111890.0,111880.0,0.42498]
[1756431174933,1.43053104,111890.0,111880.0,0.15828]
[1756431175359,1.77053104,111890.0,111870.0,0.2667]
[1756431175588,1.30085735,111880.0,111870.0,0.42298]
[1756431175739,1.34838049,111880.0,111870.0,0.42298]
[1756431176265,1.31534872,111880.0,111870.0,0.60175893]
[1756431176619,1.31534872,111880.0,111870.0,0.2677]
[1756431176824,1.31534872,111880.0,111870.0,0.42398]
[1756431177237,1.31534872,111880.0,111870.0,0.15728]
[1756431178149,1.34223772,111880.0,111870.0,0.15728]
[1756431178485,1.34223772,111880.0,111870.0,0.33605893]
[1756431178713,0.96467437,111880.0,111870.0,0.33813893]
[1756431178913,0.96467437,111880.0,111870.0,0.38481893]
[1756431179112,1.34223772,111880.0,111870.0,0.38481893]
[1756431179454,0.72870937,111880.0,111870.0,0.38481893]
[1756431179862,1.10627272,111880.0,111870.0,0.38481893]
[1756431180395,0.72870937,111880.0,111870.0,0.38481893]
[1756431180554,1.10627272,111880.0,111870.0,0.38481893]
[1756431181378,0.714218,111880.0,111870.0,0.38481893]
[1756431181580,0.72871517,111880.0,111870.0,0.38481893]
[1756431182860,1.10627852,111880.0,111870.0,0.38481893]
[1756431183003,0.72871517,111880.0,111870.0,0.38481893]
[1756431183692,1.19457484,111880.0,111870.0,0.001]
[1756431183896,1.44627852,111880.0,111870.0,0.001]
[1756431184107,1.62504148,111880.0,111870.0,0.001]
[1756431184494,1.64412375,111880.0,111870.0,0.001]
[1756431184692,1.2665604,111880.0,111870.0,0.001]
[1756431184915,1.73242007,111880.0,111870.0,0.001]
[1756431185114,1.73241845,111880.0,111870.0,0.001]
[1756431185308,0.34,111870.0,111850.0,0.39062944]
[1756431185525,1.5755879,111870.0,111850.0,0.39062944]
[1756431185721,0.687329,111860.0,111850.0,0.39062944]
[1756431185892,0.70182455,111860.0,111850.0,0.39062944]
[1756431186108,0.70182455,111860.0,111850.0,0.3837689]
[1756431186904,0.70182455,111860.0,111850.0,0.38381668]
[1756431187055,0.70182455,111860.0,111850.0,0.4544475]
[1756431187231,0.70182455,111860.0,111850.0,0.54374382]
[1756431187655,0.70182455,111860.0,111850.0,0.38481668]
[1756431188253,0.70182455,111860.0,111850.0,0.38581668]
[1756431189405,0.01449555,111860.0,111850.0,0.76338003]
[1756431189760,0.51449555,111860.0,111850.0,0.65247668]
[1756431189966,0.01449555,111860.0,111850.0,0.65247668]
[1756431191197,0.01449555,111860.0,111850.0,0.740773]
[1756431191729,0.01449555,111860.0,111850.0,0.65247668]
[1756431192035,0.34,111870.0,111860.0,0.17879492]
[1756431192172,1.41938167,111870.0,111860.0,0.18187492]
[1756431192374,1.41938167,111870.0,111860.0,0.18395492]
[1756431192571,1.41938167,111870.0,111860.0,0.22755492]
[1756431195328,1.41957546,111870.0,111860.0,0.22755492]
[1756431195537,1.41957529,111870.0,111860.0,0.22755492]
[1756431195849,1.41957529,111870.0,111860.0,0.49425492]
[1756431198818,1.50787161,111870.0,111860.0,0.42278]
[1756431199020,1.4195788,111870.0,111860.0,0.42811]
[1756431199224,1.4464688,111870.0,111860.0,0.42278]
[1756431200776,1.4464688,111870.0,111860.0,0.60157492]
[1756431200999,1.4464688,111870.0,111860.0,0.42278]
[1756431201195,1.4464688,111870.0,111860.0,0.2667]
[1756431201608,1.53476512,111870.0,111850.0,0.22569337]
[1756431201827,1.06508597,111860.0,111850.0,0.38177337]
[1756431202028,1.0795788,111860.0,111850.0,0.38177337]
[1756431202225,1.07336558,111860.0,111850.0,0.38177337]
[1756431202495,1.07337654,111860.0,111850.0,0.38177337]
[1756431202642,1.07959445,111860.0,111850.0,0.38177337]
[1756431203502,1.07959445,111860.0,111850.0,0.00328778]
[1756431203633,1.07959445,111860.0,111850.0,0.15612778]
[1756431203829,1.07959445,111860.0,111850.0,4.778e-05]
[1756431204068,1.07959445,111860.0,111850.0,0.33589868]
[1756431204378,1.07959445,111860.0,111850.0,0.33689868]
[1756431204884,1.07959445,111860.0,111850.0,0.34222868]
[1756431205090,1.07959445,111860.0,111850.0,0.18618868]
[1756431205293,1.07959445,111860.0,111850.0,0.34222868]
[1756431205560,1.07959445,111860.0,111850.0,0.18618868]
[1756431205739,1.07959445,111860.0,111850.0,0.34222868]
[1756431206436,1.07959445,111860.0,111850.0,0.33689868]
[1756431206792,1.07959445,111860.0,111850.0,0.15808778]
[1756431207416,2.74820915,111860.0,111850.0,0.00204778]
[1756431207708,2.77510515,111860.0,111850.0,0.00204778]
[1756431208453,2.77510515,111860.0,111850.0,0.00104778]
[1756431208745,2.77506515,111860.0,111850.0,0.00104778]
[1756431209212,2.61906515,111860.0,111850.0,4.778e-05]
[1756431209389,2.77506515,111860.0,111850.0,4.778e-05]
[1756431210101,2.77506454,111860.0,111850.0,4.778e-05]
[1756431211453,2.61906454,111860.0,111850.0,4.778e-05]
[1756431211655,2.77506454,111860.0,111850.0,4.778e-05]
[1756431212742,2.76884724,111860.0,111850.0,4.778e-05]
[1756431212944,2.77506048,111860.0,111850.0,4.778e-05]
[1756431214014,2.77502048,111860.0,111850.0,4.778e-05]
[1756431215003,2.84072969,111860.0,111850.0,4.778e-05]
[1756431215209,2.81505206,111860.0,111850.0,4.778e-05]
[1756431216318,2.81605206,111860.0,111850.0,4.778e-05]
[1756431216782,2.81705206,111860.0,111850.0,4.778e-05]
[1756431219582,2.81701206,111860.0,111850.0,4.778e-05]
[1756431221360,0.51882689,111840.0,111830.0,0.00324]
[1756431221535,1.78736844,111840.0,111830.0,0.00324]
[1756431221730,1.78736844,111840.0,111830.0,0.00533]
[1756431222152,1.81426744,111840.0,111830.0,0.00533]
[1756431222359,1.44648878,111840.0,111830.0,0.00533]
[1756431222708,1.60236878,111840.0,111830.0,0.00533]
[1756431223216,1.77289699,111840.0,111830.0,0.00424]
[1756431223436,1.8212738,111840.0,111830.0,0.001]
[1756431223861,1.84033319,111840.0,111830.0,0.001]
[1756431224019,1.94956833,111840.0,111830.0,0.001]
[1756431224222,1.94956833,111840.0,111830.0,0.002]
[1756431225154,0.34,111820.0,111810.0,0.26994]
[1756431225356,1.41956486,111820.0,111810.0,0.33733082]
[1756431225553,1.41956486,111820.0,111810.0,0.51829569]
[1756431225763,1.44646786,111820.0,111810.0,0.34266082]
[1756431226441,1.44650896,111820.0,111810.0,0.34266082]
[1756431226780,1.44650896,111820.0,111810.0,0.52153569]
[1756431227185,1.44650896,111820.0,111810.0,0.34266082]
[1756431227498,1.44650896,111820.0,111810.0,0.34366082]
[1756431228264,1.45837702,111820.0,111810.0,0.34366082]
[1756431228420,1.45837702,111820.0,111810.0,0.07696082]
[1756431228943,1.61425702,111820.0,111810.0,0.00633]
[1756431230707,1.23650005,111820.0,111810.0,0.00633]
[1756431232456,1.08062005,111820.0,111810.0,0.00633]
[1756431232994,1.08062005,111820.0,111810.0,0.18520487]
[1756431233358,1.43147402,111820.0,111810.0,0.22880487]
[1756431233569,0.40414502,111820.0,111810.0,0.22880487]
[1756431233707,0.39794043,111820.0,111810.0,0.22880487]
[1756431233903,0.40414121,111820.0,111810.0,0.22880487]
[1756431234307,0.39794043,111820.0,111810.0,0.49550487]
[1756431234552,0.40414255,111820.0,111810.0,0.49550487]
[1756431234728,0.40414255,111820.0,111810.0,0.65130487]
[1756431235343,0.40414255,111820.0,111810.0,0.31663]
[1756431235508,1.09147155,111820.0,111810.0,0.47243]
[1756431235706,1.24727155,111820.0,111810.0,0.27303]
[1756431235933,1.33556787,111820.0,111810.0,0.31663]
[1756431236337,1.24727155,111820.0,111810.0,0.31663]
[1756431236780,0.86951458,111820.0,111810.0,0.27303]
[1756431236957,1.24727155,111820.0,111810.0,0.31663]
[1756431237439,1.24727155,111820.0,111810.0,0.27303]
[1756431238394,1.09147155,111820.0,111810.0,0.27303]
[1756431239169,1.24723155,111820.0,111810.0,0.27303]
[1756431239363,1.33552787,111820.0,111810.0,0.27303]
[1756431240403,1.24723155,111820.0,111810.0,0.27303]
[1756431240609,1.09147155,111820.0,111810.0,0.42879]
[1756431240821,0.71371458,111820.0,111810.0,0.49550487]
[1756431241027,0.71371458,111820.0,111810.0,0.65126487]
[1756431241028,1.09147155,111820.0,111810.0,0.65126487]
[1756431241963,1.09147155,111820.0,111810.0,0.31663]
[1756431242164,1.09147155,111820.0,111810.0,0.47239]
[1756431242823,0.71371458,111820.0,111810.0,0.65126487]
[1756431243063,0.71373741,111820.0,111810.0,0.65126487]
[1756431243289,0.02640841,111820.0,111810.0,0.65126487]
[1756431243616,0.02641131,111820.0,111810.0,0.65126487]
[1756431243822,0.40416828,111820.0,111810.0,0.65126487]
[1756431244230,1.24721728,111820.0,111810.0,0.27303]
[1756431244402,1.51437248,111820.0,111810.0,0.27094]
[1756431244632,1.24721728,111820.0,111810.0,0.27295]
[1756431245951,0.86946031,111820.0,111810.0,0.27295]
[1756431246157,1.24721728,111820.0,111810.0,0.27295]
[1756431246568,1.24722261,111820.0,111810.0,0.27295]
[1756431247193,0.86946564,111820.0,111810.0,0.27295]
[1756431247345,1.24722261,111820.0,111810.0,0.27295]
[1756431247737,1.85437781,111820.0,111810.0,0.001]
[1756431248143,1.88128281,111820.0,111810.0,0.001]
[1756431248763,1.70242393,111820.0,111810.0,0.001]
[1756431249130,1.61412761,111820.0,111810.0,0.00402]
[1756431249444,1.79298649,111820.0,111810.0,0.00402]
[1756431249647,1.79298649,111820.0,111810.0,0.001]
[1756431249887,1.61413386,111820.0,111810.0,0.001]
[1756431250111,1.61413386,111820.0,111810.0,0.00402]
[1756431250311,1.79299274,111820.0,111810.0,0.00402]
[1756431250724,1.79295274,111820.0,111810.0,0.001]
[1756431250958,1.61409386,111820.0,111810.0,0.001]
[1756431251100,1.61409386,111820.0,111810.0,0.00402]
[1756431251680,1.61409386,111820.0,111810.0,0.001]
[1756431251863,1.61409386,111820.0,111810.0,0.00402]
[1756431253257,1.61409821,111820.0,111810.0,0.00402]
[1756431253484,1.61410346,111820.0,111810.0,0.00402]
[1756431253620,1.39586373,111820.0,111810.0,0.00402]
[1756431254650,1.41694465,111820.0,111810.0,0.00402]
[1756431255740,1.59580353,111820.0,111810.0,0.00402]
[1756431256156,1.41694465,111820.0,111810.0,0.00603]
[1756431257179,1.41694465,111820.0,111810.0,0.00402]
[1756431257383,0.88350768,111820.0,111810.0,0.22850487]
[1756431257536,1.26126465,111820.0,111810.0,0.22850487]
[1756431257943,1.26126465,111820.0,111810.0,0.49520487]
[1756431259260,0.54350768,111820.0,111810.0,0.49520487]
[1756431259452,0.44025965,111820.0,111810.0,0.49520487]
[1756431260820,0.41335465,111820.0,111810.0,0.49520487]
[1756431261312,0.03559768,111820.0,111810.0,0.49520487]
[1756431261547,0.40713298,111820.0,111810.0,0.49520487]
[1756431261668,0.02937601,111820.0,111810.0,0.56300487]
[1756431261875,0.40713298,111820.0,111810.0,0.59804217]
[1756431262292,0.40713298,111820.0,111810.0,0.60104217]
[1756431262846,0.38605206,111820.0,111810.0,0.60104217]
[1756431263047,0.00829509,111820.0,111810.0,0.56600487]
[1756431263379,0.38605206,111820.0,111810.0,0.56600487]
[1756431263779,0.74465297,111830.0,111820.0,0.17885888]
[1756431263977,0.75916299,111830.0,111820.0,0.45056888]
[1756431264112,0.44085577,111830.0,111820.0,0.49416888]
[1756431264319,0.0362028,111830.0,111820.0,0.49416888]
[1756431264535,0.02169278,111830.0,111820.0,0.49416888]
[1756431264734,0.40465097,111840.0,111830.0,0.17884288]
[1756431264936,0.75915659,111840.0,111830.0,0.33941288]
[1756431265141,0.38139962,111840.0,111830.0,0.33841288]
[1756431265342,0.75915659,111840.0,111830.0,0.42117006]
[1756431266357,0.04139962,111840.0,111830.0,0.73147006]
[1756431266598,0.3860459,111840.0,111830.0,0.73147006]
[1756431267592,0.3860459,111840.0,111830.0,0.73247006]
[1756431267794,0.40734995,111840.0,111830.0,0.73247006]
[1756431268435,0.39906102,111840.0,111830.0,0.73347006]
[1756431269858,0.39906102,111840.0,111830.0,0.57791006]
[1756431270068,0.39906102,111840.0,111830.0,0.65067288]
[1756431271962,0.37775697,111840.0,111830.0,0.65067288]
[1756431272287,0.37775697,111840.0,111830.0,0.65063288]
[1756431273081,0.026893,111850.0,111840.0,0.22242689]
[1756431273317,0.37775697,111860.0,111850.0,0.1788109]
[1756431273528,0.87338123,111860.0,111850.0,0.2274209]
[1756431273730,0.90027123,111860.0,111850.0,0.3829009]
[1756431274160,1.23406728,111860.0,111850.0,0.3829009]
[1756431274371,1.2402713,111860.0,111850.0,0.3829009]
[1756431275349,0.86251433,111860.0,111850.0,0.3829009]
[1756431275556,1.2402713,111860.0,111850.0,0.44495368]
[1756431276078,1.2422713,111860.0,111850.0,0.44495368]
[1756431276708,1.2432713,111860.0,111850.0,0.44495368]
[1756431276909,1.2442713,111860.0,111850.0,0.44495368]
[1756431277352,1.23706728,111860.0,111850.0,0.44495368]
[1756431277685,1.25825166,111860.0,111850.0,0.44495368]
[1756431277886,0.75035666,111860.0,111850.0,0.44495368]
[1756431278019,0.75035666,111860.0,111850.0,0.3819009]
[1756431278221,0.75035666,111860.0,111850.0,0.2264209]
[1756431278427,0.75035666,111860.0,111850.0,0.3818609]
[1756431278840,0.75035666,111860.0,111850.0,0.4931209]
[1756431279038,0.75035666,111860.0,111850.0,0.6435509]
[1756431279294,0.75035666,111860.0,111850.0,0.6485609]
[1756431284504,0.74208463,111860.0,111850.0,0.6485609]
[1756431284729,0.75035053,111860.0,111850.0,0.6485609]
[1756431285464,0.75035053,111860.0,111850.0,0.26973]
[1756431285672,1.32585248,111860.0,111850.0,0.46566]
[1756431285807,1.23755616,111860.0,111850.0,0.3103]
[1756431286007,1.26444716,111860.0,111850.0,0.46566]
[1756431286663,1.26445353,111860.0,111850.0,0.46566]
[1756431287483,1.26445353,111860.0,111850.0,0.2667]
[1756431287484,2.50409191,111860.0,111850.0,0.2667]
[1756431287684,1.62186617,111860.0,111850.0,0.42206]
[1756431287884,1.68690477,111860.0,111850.0,0.42206]
[1756431288086,2.64132358,111860.0,111850.0,0.42206]
[1756431288234,2.66224642,111860.0,111850.0,0.42206]
[1756431288641,1.73346524,111860.0,111850.0,0.2667]
[1756431289939,2.55065238,111860.0,111850.0,0.2667]
[1756431290682,0.5188109,111850.0,111840.0,0.15532]
[1756431290884,2.45285229,111850.0,111840.0,0.15532]
[1756431291854,2.45285229,111850.0,111840.0,0.001]
[1756431291993,2.45285229,111850.0,111840.0,0.15632]
[1756431292180,2.54114861,111850.0,111840.0,0.15632]
[1756431292818,2.54114861,111850.0,111840.0,0.15732]
[1756431293020,2.54114861,111850.0,111840.0,0.001]
[1756431293426,2.54114861,111850.0,111830.0,0.19892]
[1756431293671,1.37758886,111840.0,111820.0,0.11536]
[1756431293875,0.85876197,111830.0,111820.0,0.27064]
[1756431294072,0.87323793,111830.0,111820.0,0.27064]
[1756431294247,0.87323793,111830.0,111820.0,0.27269]
[1756431294656,0.90013493,111830.0,111820.0,0.27269]
[1756431295052,0.90015195,111830.0,111820.0,0.27269]
[1756431295451,0.90015195,111830.0,111820.0,0.27469]
[1756431295925,0.90015195,111830.0,111820.0,0.27269]
[1756431296295,0.90015195,111830.0,111820.0,0.27469]
[1756431296827,0.90015195,111830.0,111820.0,0.27669]
[1756431297613,0.90015195,111830.0,111820.0,0.27469]
[1756431298025,0.90015195,111830.0,111820.0,0.27669]
[1756431298527,1.32844827,111830.0,111820.0,0.0476]
[1756431298696,1.32844827,111830.0,111820.0,0.15928]
[1756431299281,1.24015195,111830.0,111820.0,0.16224]
[1756431299488,1.24015195,111830.0,111820.0,0.16024]
[1756431299685,1.24015195,111830.0,111820.0,0.15824]
[1756431299992,1.24015195,111830.0,111820.0,0.15924]
[1756431300372,1.24015195,111830.0,111820.0,0.16024]
[1756431300544,1.41899483,111830.0,111820.0,0.16024]
[1756431300748,1.41899483,111830.0,111820.0,0.15728]
[1756431300946,0.86239498,111830.0,111820.0,0.16229]
[1756431301147,1.24015195,111830.0,111820.0,0.16229]
[1756431301389,1.24014586,111830.0,111820.0,0.16024]
[1756431301585,1.32844218,111830.0,111820.0,0.16229]
[1756431301790,1.50728506,111830.0,111820.0,0.15728]
[1756431302023,1.66252506,111830.0,111820.0,0.15728]
[1756431302224,1.66252506,111830.0,111820.0,0.002]
[1756431302986,1.66252506,111830.0,111820.0,0.001]
[1756431303192,0.34,111820.0,111810.0,0.1582]
[1756431303338,1.21324886,111820.0,111810.0,0.16025]
[1756431304333,1.20702615,111820.0,111810.0,0.2043279]
[1756431304540,1.2132241,111820.0,111810.0,0.2043279]
[1756431304934,1.21322285,111820.0,111810.0,0.2043279]
[1756431305120,0.82926793,111820.0,111810.0,0.2053279]
[1756431305325,1.2132221,111820.0,111810.0,0.2053279]
[1756431306138,1.2132221,111820.0,111810.0,0.2063279]
[1756431306656,0.83546513,111820.0,111810.0,0.2063279]
[1756431306851,1.2132221,111820.0,111810.0,0.2063279]
[1756431307935,0.35445983,111820.0,111810.0,0.42372448]
[1756431308167,0.00826293,111820.0,111810.0,0.42372448]
[1756431308384,0.74465397,111830.0,111810.0,0.42372448]
[1756431308608,0.38135876,111830.0,111820.0,0.00519573]
[1756431308813,0.86236376,111830.0,111820.0,0.00724573]
[1756431309017,0.86236376,111830.0,111820.0,0.00501]
[1756431309774,1.24012073,111830.0,111820.0,0.00501]
[1756431311392,1.24012403,111830.0,111820.0,0.00501]
[1756431311738,1.24012403,111830.0,111820.0,0.00601]
[1756431312169,1.24012403,111830.0,111820.0,0.00701]
[1756431312614,1.24012403,111830.0,111820.0,0.05284573]
[1756431312831,1.24012403,111830.0,111820.0,0.05061]
[1756431314720,1.23185828,111830.0,111820.0,0.05061]
[1756431314923,1.24013257,111830.0,111820.0,0.05061]
[1756431315770,1.2401355,111830.0,111820.0,0.05061]
[1756431316604,1.00675878,111830.0,111820.0,0.05061]
[1756431316838,0.49548153,111830.0,111820.0,0.07124279]
[1756431317045,0.3922335,111830.0,111820.0,0.22863852]
[1756431317247,0.3922335,111830.0,111820.0,0.49310279]
[1756431318530,0.01447653,111830.0,111820.0,0.67196167]
[1756431318739,0.3922335,111830.0,111820.0,0.67196167]
[1756431319499,0.3922335,111830.0,111820.0,0.49310279]
[1756431319819,0.3922335,111830.0,111820.0,0.47247]
[1756431320044,0.3922335,111830.0,111820.0,0.65132888]
[1756431323667,0.7322335,111830.0,111820.0,0.65132888]
[1756431325272,0.72604368,111830.0,111820.0,0.31731]
[1756431325501,0.73226023,111830.0,111820.0,0.47239]
[1756431325937,0.35450326,111830.0,111820.0,0.47239]
[1756431326137,0.73226454,111830.0,111820.0,0.37147449]
[1756431326362,0.73226454,111830.0,111820.0,0.52655449]
[1756431327006,0.73248894,111830.0,111820.0,0.52655449]
[1756431327184,0.73248894,111830.0,111820.0,0.47239]
[1756431328952,0.73248894,111830.0,111820.0,0.65124888]
[1756431331309,0.73248894,111830.0,111820.0,0.47235]
[1756431332406,0.73249063,111830.0,111820.0,0.47235]
[1756431335430,0.73249063,111830.0,111820.0,0.31731]
[1756431335837,0.7324993,111830.0,111820.0,0.47231]
[1756431336094,0.7324993,111830.0,111820.0,0.3123]
[1756431336248,1.4806435,111830.0,111820.0,0.4673]
[1756431336448,1.39234718,111830.0,111820.0,0.4237]
[1756431336694,1.2135043,111830.0,111820.0,0.4673]
[1756431337050,1.54734718,111830.0,111820.0,0.3123]
[1756431337242,1.3685043,111830.0,111820.0,0.4673]
[1756431337655,1.54734718,111830.0,111820.0,0.2687]
[1756431337882,1.54734718,111830.0,111820.0,0.4237]
[1756431338292,1.3685043,111830.0,111820.0,0.4237]
[1756431338494,1.3954043,111830.0,111820.0,0.4237]
[1756431338733,1.2404043,111830.0,111820.0,0.2687]
[1756431339042,1.2135043,111830.0,111820.0,0.52630779]
[1756431339261,1.2135043,111830.0,111820.0,0.47265]
[1756431341944,1.39234718,111830.0,111820.0,0.3123]
[1756431342171,1.39234718,111830.0,111820.0,0.46726]
[1756431342575,1.2135043,111830.0,111820.0,0.46726]
[1756431342955,1.2404033,111830.0,111820.0,0.3123]
[1756431343160,1.2404033,111830.0,111820.0,0.46726]
[1756431343375,1.2404033,111830.0,111820.0,0.47045]
[1756431343760,1.2404033,111830.0,111820.0,0.47261]
[1756431344761,1.2404033,111830.0,111820.0,0.47045]
[1756431344962,1.2404033,111830.0,111820.0,0.46726]
[1756431345827,1.2404033,111830.0,111820.0,0.47045]
[1756431346029,1.2404033,111830.0,111820.0,0.46726]
[1756431346229,1.2404033,111830.0,111820.0,0.47045]
[1756431346570,1.24041156,111830.0,111820.0,0.46726]
[1756431346931,1.24041122,111830.0,111820.0,0.20375]
[1756431347134,1.24041122,111830.0,111820.0,0.20591]
[1756431347327,1.21351223,111830.0,111820.0,0.20591]
[1756431347548,1.24041123,111830.0,111820.0,0.20591]
[1756431347873,1.24041123,111830.0,111820.0,0.20375]
[1756431348078,1.41925411,111830.0,111820.0,0.20052]
[1756431348237,1.41925411,111830.0,111820.0,0.15692]
[1756431348424,1.66247043,111830.0,111820.0,0.15692]
[1756431348626,1.66247043,111830.0,111820.0,0.002]
[1756431349232,1.25701111,111830.0,111820.0,0.002]
[1756431349447,1.41193111,111830.0,111820.0,0.00523]
[1756431349650,1.41193111,111830.0,111820.0,0.002]
[1756431350249,1.41193111,111830.0,111820.0,0.00523]
[1756431351502,1.41193111,111830.0,111820.0,0.002]
[1756431353040,1.41193111,111830.0,111820.0,0.00523]
[1756431353249,1.41193111,111830.0,111820.0,0.002]
[1756431353848,1.41193111,111830.0,111820.0,0.00523]
[1756431354049,1.41193111,111830.0,111820.0,0.00738]
[1756431354243,1.25701111,111830.0,111820.0,0.00523]
[1756431354649,1.25701111,111830.0,111820.0,0.002]
[1756431354859,1.25701111,111830.0,111820.0,0.00523]
[1756431356838,1.2570062,111830.0,111820.0,0.00523]
[1756431357653,1.25700753,111830.0,111820.0,0.00523]
[1756431360027,1.25700753,111830.0,111820.0,0.002]
[1756431360399,1.43585041,111830.0,111820.0,0.002]
[1756431360631,1.59069041,111830.0,111820.0,0.002]
[1756431360855,1.67898673,111830.0,111820.0,0.002]
[1756431362040,1.52414673,111830.0,111820.0,0.001]
[1756431362241,0.34,111820.0,111810.0,0.4688479]
[1756431362439,1.23010853,111820.0,111810.0,0.4688479]
[1756431362641,1.23010899,111820.0,111810.0,0.4709979]
[1756431364152,1.23010899,111820.0,111810.0,0.4719979]
[1756431364366,1.23010995,111820.0,111810.0,0.4719979]
[1756431364768,1.23010995,111820.0,111810.0,0.2062979]
[1756431366217,1.23011639,111820.0,111810.0,0.2062979]
[1756431366819,1.40897527,111820.0,111810.0,0.0460779]
[1756431366979,1.44200704,111820.0,111810.0,0.1573179]
[1756431367184,1.44200442,111820.0,111810.0,0.1573179]
[1756431367837,1.43587465,111820.0,111810.0,0.1573179]
[1756431368414,1.43587465,111820.0,111810.0,0.0024779]
[1756431368619,1.43587465,111820.0,111810.0,0.1572779]
[1756431369289,1.43587465,111820.0,111810.0,0.0024779]
[1756431369503,1.43587465,111820.0,111810.0,0.1572779]
[1756431369868,1.09587465,111820.0,111810.0,0.1572779]
[1756431370402,1.13660535,111820.0,111810.0,0.1572779]
[1756431370836,0.5797651,111820.0,111810.0,0.1626579]
[1756431371060,0.95774647,111820.0,111810.0,0.18328369]
[1756431371260,0.91701577,111820.0,111810.0,0.22688369]
[1756431372019,0.91700754,111820.0,111810.0,0.22688369]
[1756431372936,0.91700754,111820.0,111810.0,0.2062579]
[1756431373841,1.25700754,111820.0,111810.0,0.2062579]
[1756431375201,1.2570068,111820.0,111810.0,0.2062579]
[1756431376547,1.24041449,111820.0,111810.0,0.2062579]
[1756431376792,1.25700217,111820.0,111810.0,0.4729579]
[1756431378796,1.43586105,111820.0,111810.0,0.4729579]
[1756431379470,1.25700217,111820.0,111810.0,0.4729579]
[1756431380317,1.43586105,111820.0,111810.0,0.3160079]
[1756431380535,1.43586105,111820.0,111810.0,0.4674979]
[1756431380746,1.43586105,111820.0,111810.0,0.4726479]
[1756431381137,1.67887737,111820.0,111810.0,0.0024779]
[1756431382334,1.52415737,111820.0,111810.0,0.0076279]
[1756431382500,1.43586105,111820.0,111810.0,0.0076279]
[1756431383404,1.25700217,111820.0,111810.0,0.0076279]
[1756431383615,1.43586105,111820.0,111810.0,0.0076279]
[1756431384827,1.43586105,111820.0,111810.0,0.0055479]
[1756431384974,1.43586105,111820.0,111810.0,0.0024779]
[1756431385535,2.69863111,111820.0,111810.0,0.0024779]
[1756431385769,2.7845325,111820.0,111810.0,0.0024779]
[1756431385983,2.80547132,111820.0,111810.0,0.0024779]
[1756431386187,2.83512904,111820.0,111810.0,0.0024779]
[1756431386386,2.84775181,111820.0,111810.0,0.0024779]
[1756431386666,2.87952659,111820.0,111810.0,0.0024779]
[1756431386866,2.8567098,111820.0,111810.0,0.0014779]
[1756431387111,2.87949925,111820.0,111810.0,0.0004779]
[1756431387313,2.88350778,111820.0,111810.0,0.0004779]
[1756431387525,2.88349702,111820.0,111810.0,0.0004779]
[1756431387933,2.88749695,111820.0,111810.0,0.0004779]
[1756431388151,2.92227173,111820.0,111810.0,0.0004779]
[1756431388353,2.89049695,111820.0,111810.0,0.0004779]
[1756431389939,0.53982969,111800.0,111790.0,0.0002]
[1756431390169,2.76594583,111800.0,111790.0,0.00024767]
[1756431390566,2.79285783,111800.0,111790.0,0.00024767]
[1756431391402,2.79385783,111800.0,111790.0,0.00024767]
[1756431391602,2.63917783,111800.0,111790.0,0.00024767]
[1756431391805,2.79485783,111800.0,111790.0,0.00024767]
[1756431392669,2.60714606,111800.0,111790.0,0.00024767]
[1756431392780,1.34079323,111800.0,111790.0,0.00024767]
[1756431392984,2.73856834,111800.0,111790.0,0.00024767]
[1756431393999,2.7385469,111800.0,111790.0,0.00024767]
[1756431394577,2.76180462,111800.0,111790.0,0.00024767]
[1756431394802,2.85010094,111800.0,111790.0,0.00024767]
[1756431396298,0.94582359,111790.0,111780.0,0.00044729]
[1756431396540,1.60422577,111790.0,111780.0,0.00044729]
[1756431396951,1.6441798,111790.0,111780.0,0.00044729]
[1756431397156,1.68509699,111790.0,111780.0,0.00044729]
[1756431397356,2.73167051,111790.0,111780.0,0.00044729]
[1756431397559,2.73785839,111790.0,111780.0,0.00044729]